[Event "44th Chess Olympiad Open 2022"]
[Site "Chennai"]
[Date "2022.08.03"]
[Round "6.48"]
[White "Adebayo, Adegboyega"]
[Black "Myat Thiri Aung Kyaw"]
[Result "0-1"]
[WhiteElo "2313"]
[BlackElo "2120"]
[Annotator "TA"]
[PlyCount "127"]
[EventDate "2022.??.??"]
[TimeControl "60"]

{[%evp 13,127,7,11,-4,16,3,19,4,32,18,23,20,34,0,30,27,24,17,22,-31,-38,-33,14,
-16,12,11,13,0,0,0,0,-21,0,-6,0,-8,0,0,1,-8,0,0,0,0,16,12,12,20,29,0,0,0,0,0,
41,-51,0,-25,28,25,41,41,41,41,40,35,41,41,41,41,120,127,236,196,316,206,195,
196,191,132,118,113,139,131,192,142,175,182,213,200,227,209,215,222,317,327,
318,318,321,311,302,295,281,226,421,291,1282,1133,1588,1588,1820,1806,5381,614,
2749,226]} 1. d4 {[%emt 0:00:03]} Nf6 {[%emt 0:03:52]} 2. Bg5 {[%emt 0:00:26]}
d5 {[%emt 0:02:48]} 3. e3 {[%emt 0:00:19]} e6 {[%emt 0:01:30]} 4. Nf3 {[%emt 0:
00:00]} Be7 {[%emt 0:02:53]} 5. Nbd2 {[%emt 0:00:15]} Nbd7 {[%emt 0:00:48]} 6.
c3 {[%emt 0:00:22]} c5 {[%emt 0:02:47] is the legacy move (6...b6).} 7. Bd3 {
[%emt 0:00:37]} h6 {[%emt 0:02:20]} 8. Bf4 {[%emt 0:01:06] D03:1 d4 d5 2 Nf3
Nf6 3 Bg5, including Torre Attack with early ...d5.} a6 {[%emt 0:04:28]} 9. O-O
{[%emt 0:00:52] [#]} Nh5 $146 {[%emt 0:03:17]} ({Predecessor:} 9... Qb6 10. Qb3
Qc6 11. Qd1 c4 12. Bc2 b5 13. a3 Bb7 14. Re1 Ne4 15. Ne5 Nxe5 16. Bxe5 {
0-1 (51) Krsmanovic,G (1822)-Nesovanovic,M (1985) Belgrade 2007}) 10. Be5 {
[%emt 0:00:16] The position is equal.} Nxe5 {[%emt 0:00:23]} 11. Nxe5 {[%emt 0:
00:00]} Nf6 {[%emt 0:00:04]} 12. f4 {[%emt 0:00:20]} Qc7 {[%emt 0:05:45]} 13.
a4 {[%emt 0:01:15]} Bd7 {[%emt 0:07:53]} 14. Qf3 {[%emt 0:00:48]} Bc6 {[%emt 0:
00:00]} 15. Qg3 {[%emt 0:05:09]} O-O {[%emt 0:09:10]} 16. Ng4 {[%emt 0:03:25]}
(16. Bc2 $11) 16... Nxg4 $15 {[%emt 0:02:07]} 17. Qxg4 {[%emt 0:00:07]} f5 {
[%emt 0:00:19]} (17... b5 $15) 18. Qh3 {[%emt 0:01:02]} Qb6 {[%emt 0:14:02]}
19. Rfb1 {[%emt 0:03:43]} Bd6 {[%emt 0:01:55]} 20. Nf3 {[%emt 0:06:51]} cxd4 {
[%emt 0:02:11]} 21. Nxd4 {[%emt 0:00:18]} Bd7 {[%emt 0:00:47]} 22. Qf3 {
[%emt 0:01:43]} Rac8 {[%emt 0:03:19]} 23. a5 {[%emt 0:00:49]} Qc5 {[%emt 0:00:
00]} 24. Rc1 {[%emt 0:00:37]} e5 {[%emt 0:06:10]} 25. b4 {[%emt 0:12:34]} Qc7 {
[%emt 0:00:55]} 26. Qxd5+ {[%emt 0:02:13]} Kh8 {[%emt 0:00:19]} 27. fxe5 {
[%emt 0:00:38]} Bxe5 {[%emt 0:00:35]} 28. h3 {[%emt 0:02:59]} Rcd8 {[%emt 0:00:
00]} 29. Qf3 {[%emt 0:02:26]} Bc8 {[%emt 0:02:38] This bishop pair is nice.}
30. Rc2 {[%emt 0:01:32]} Qe7 {[%emt 0:03:31]} 31. Rf1 {[%emt 0:04:53]} Bb8 {
[%emt 0:01:10]} 32. Rff2 {[%emt 0:05:08]} Rde8 {[%emt 0:03:04]} 33. Rfe2 {
[%emt 0:06:00]} (33. Bxf5 g6 34. e4 gxf5 35. exf5 Qd6 $17) 33... g6 {[%emt 0:
00:00]} 34. Bc4 {[%emt 0:08:53]} (34. e4 $14) 34... h5 {[%emt 0:00:57]} ({
Black should try} 34... g5 $1 $15 35. Bb3 Qd6) 35. Qf2 {[%emt 0:01:40]} Qc7 {
[%emt 0:00:38]} (35... g5 $142) 36. Qf4 $36 {[%emt 0:01:45] White is pushing.}
Qxf4 {[%emt 0:00:13]} 37. exf4 {[%emt 0:00:06]} Bxf4 {[%emt 0:00:00]} 38. Rxe8
{[%emt 0:01:38]} Rxe8 {[%emt 0:00:13]} 39. Bf7 {[%emt 0:02:30][%csl Ye8,Yg6]}
Re3 {[%emt 0:00:51]} 40. Bxg6 {[%emt 0:01:08]} Bg3 {[%emt 0:00:00][%cal Re3e1]}
41. Rc1 {[%emt 0:32:25]} Be5 {[%emt 0:30:54] [#]} ({Better is} 41... Re1+ $14
42. Rxe1 Bxe1) 42. Kf1 $1 $16 {[%emt 0:00:32]} ({Much less strong is} 42. Bxh5
Rxc3 43. Ne2 Rc7 $14) ({Don't do} 42. Nxf5 Bxf5 43. Bxf5 Rxc3 $14) 42... f4 {
[%emt 0:00:13]} (42... Bf4 $16 {is a better defense.}) 43. Bxh5 {[%emt 0:05:23]
} Kg7 {[%emt 0:00:00]} (43... Bf6 $142 44. Bf3 Kg7 45. Bxb7 Bxb7) 44. Bf3 {
[%emt 0:00:00]} Kf6 {[%emt 0:00:00]} 45. h4 {[%emt 0:00:00]} Bc7 {[%emt 0:00:
00]} 46. Kf2 {[%emt 0:00:00]} (46. Ne2 $18) 46... b6 {[%emt 0:00:00]} 47. Ne2 {
[%emt 0:00:00]} (47. g4 {feels hotter.} bxa5 48. g5+ Kg7 49. bxa5 Bxa5 50. Ne2)
47... bxa5 {[%emt 0:00:00]} 48. bxa5 {[%emt 0:00:00]} Re7 {[%emt 0:00:00]} (
48... Rd3 $16 49. Rb1 Be6) 49. Ra1 {[%emt 0:00:00]} ({White should play} 49. c4
$18) 49... Bd7 {[%emt 0:00:00]} 50. c4 {[%emt 0:00:00][%cal Yc3c4,Yc4c5]} Be6 {
[%emt 0:00:00]} 51. c5 {[%emt 0:00:00]} Bc4 {[%emt 0:00:00]} 52. Ra4 {[%emt 0:
00:00]} Bb5 {[%emt 0:00:00]} 53. Rb4 {[%emt 0:00:00]} Kg7 {[%emt 0:00:00]} (
53... Bxe2 {was worth a try.} 54. Bxe2 Ke5) 54. Nxf4 $18 {[%emt 0:01:49] [#]
aiming for Nd5.} Bxa5 {[%emt 0:00:18]} 55. Re4 {[%emt 0:00:11]} Rxe4 {[%emt 0:
00:00]} 56. Bxe4 {[%emt 0:00:11] Endgame KBB-KBN} Bb4 {[%emt 0:00:00]} 57. Kf3
{[%emt 0:00:30]} a5 {[%emt 0:00:02]} 58. Bd5 {[%emt 0:03:41]} Kf6 $2 {[%emt 0:
00:00]} (58... a4 59. c6 Ba5 60. Ne6+ Kf6) 59. c6 {[%emt 0:05:56] Strongly
threatening g4.} Bd6 $2 {[%emt 0:01:26]} (59... Ke7 60. g4 Kd6) 60. g4 {
[%emt 0:02:43] White is clearly winning.} Ke5 {[%emt 0:00:35]} 61. h5 {[%emt 0:
00:00][%cal Yh4h5,Yh5h6]} a4 {[%emt 0:03:21]} 62. h6 {[%emt 0:00:34] White
wants to mate with h7.} Kf6 {[%emt 0:00:13]} 63. Ne6 {[%emt 0:03:47]} (63. Ke4
$142 Bf8 64. c7) 63... Be5 {[%emt 0:04:30]} 64. Nc5 $2 {[%emt 0:04:36]
Weighted Error Value: White=0.31/Black=0.25 (precise) . Loss on time!?} (64.
Ke4 Bxc6 65. g5+ Kg6 66. Kxe5 Bxd5 67. Nf4+ Kh7 68. Nxd5 Kg6 69. Nf4+ Kf7 70.
g6+ Ke7 71. h7) 0-1

[Event "44th Chess Olympiad Open 2022"]
[Site "Chennai"]
[Date "2022.08.03"]
[Round "6.48"]
[White "Balogun, Oluwafemi"]
[Black "Maung, Maung Kyaw Zaw Hein"]
[Result "1-0"]
[WhiteElo "2274"]
[BlackElo "2121"]
[Annotator "TA"]
[PlyCount "87"]
[EventDate "2022.??.??"]
[TimeControl "60"]

{[%evp 26,87,33,39,35,39,50,5,53,35,85,50,166,149,152,154,191,170,174,164,270,
268,268,264,244,256,250,271,266,262,345,338,390,405,429,449,435,423,439,412,
497,486,621,564,602,478,735,727,775,775,677,719,889,874,914,878,1277,1127,5273,
3379,1937,649,1467,1097]} 1. e4 {[%emt 0:00:26]} c5 {[%emt 0:01:31]} 2. Nf3 {
[%emt 0:00:28]} d6 {[%emt 0:02:17]} 3. d4 {[%emt 0:00:14]} cxd4 {[%emt 0:00:03]
} 4. Nxd4 {[%emt 0:00:24]} Nf6 {[%emt 0:00:04]} 5. Nc3 {[%emt 0:00:18]} g6 {
[%emt 0:00:11]} 6. Be3 {[%emt 0:02:51]} Bg7 {[%emt 0:00:08]} 7. f3 {[%emt 0:00:
00]} O-O {[%emt 0:00:08]} 8. Qd2 {[%emt 0:01:37]} Nc6 {[%emt 0:00:38]} 9. O-O-O
{[%emt 0:01:41]} d5 {[%emt 0:03:07]} 10. Qe1 {[%emt 0:03:10]} e5 {[%emt 0:00:
00]} 11. Nxc6 {[%emt 0:01:05]} bxc6 {[%emt 0:00:12]} 12. exd5 {[%emt 0:00:14]}
Nxd5 {[%emt 0:08:58]} 13. Bc4 {[%emt 0:01:21]} Be6 {[%emt 0:04:19]} 14. Ne4 {
[%emt 0:02:39]} Qc8 {[%emt 0:08:02] B76: Sicilian Dragon: Yugoslav Attack, 9
g4 and 9 0-0-0.} 15. Bc5 {[%emt 0:05:00]} Rd8 {[%emt 0:00:50]} 16. g4 {[%emt 0:
00:00]} h6 {[%emt 0:04:47]} (16... Nf4 $11 17. Rxd8+ Qxd8 18. Bxe6 Nxe6) 17. h4
{[%emt 0:07:46][%cal Yh2h4,Yh4h5]} Qc7 {[%emt 0:08:57] [#]} (17... Nf4 $14 18.
Qc3 Rxd1+ 19. Rxd1 Bd5) 18. Bb3 $146 {[%emt 0:05:40] White is more active.} ({
Predecessor:} 18. h5 g5 19. Ba3 Nf4 20. Bxe6 Rxd1+ 21. Qxd1 Nxe6 22. Rh2 Rd8
23. Rd2 Rxd2 24. Qxd2 {1-0 (34) Herzum,P (2028)-Sundorf,J (2186) Germany 2017})
18... Bf8 {[%emt 0:02:50] White leaves nothing to chance now.} ({Black should
try} 18... f5 $14) 19. Bxf8 $18 {[%emt 0:04:49]} Kxf8 {[%emt 0:00:00]} 20. Nc5
{[%emt 0:02:08]} Re8 {[%emt 0:14:19]} 21. h5 {[%emt 0:03:41] [#] hxg6 is the
strong threat.} g5 {[%emt 0:03:10]} 22. Qe4 {[%emt 0:12:37] And now Qh7 would
win.} Nf6 {[%emt 0:04:14] Against Qh7} (22... Kg8 {was worth a try.} 23. Nxe6
fxe6) 23. Qb4 {[%emt 0:02:06]} Kg8 {[%emt 0:02:34]} 24. Nxe6 {[%emt 0:04:27]}
fxe6 {[%emt 0:00:06]} 25. Qd6 {[%emt 0:01:18]} Qxd6 {[%emt 0:00:00]} 26. Rxd6 {
[%emt 0:00:09]} Kf7 {[%emt 0:00:19]} 27. Re1 {[%emt 0:03:11]} ({Much less
strong is} 27. Rxc6 Re7 28. Rf1 Rb8 $18) 27... e4 {[%emt 0:01:27]} 28. fxe4 {
[%emt 0:01:20][%cal Yf3e4,Ye4e5]} Re7 {[%emt 0:05:32]} 29. e5 {[%emt 0:04:54] 
[#] Black must now prevent Rf1.} Nd5 {[%emt 0:07:17]} 30. Rxc6 {[%emt 0:03:47]}
Nf4 {[%emt 0:00:08]} 31. Rd1 {[%emt 0:01:41] Against Rd8} Rb8 {[%emt 0:01:26]}
32. Bc4 {[%emt 0:03:46] Against Rb5} Kg7 {[%emt 0:03:16]} 33. a4 {[%emt 0:01:
09] White is clearly winning.} Rbe8 {[%emt 0:02:20]} 34. b4 {[%emt 0:00:35]
[%cal Yb2b4,Yb4b5]} Ng2 {[%emt 0:00:37]} 35. Rd3 {[%emt 0:03:24] Against Ne3}
Nf4 {[%emt 0:02:39]} (35... Ne1 $142 36. Rc3 Ng2) 36. Rd2 {[%emt 0:00:17]} Rf8
{[%emt 0:01:05]} 37. b5 {[%emt 0:02:56]} Nd5 {[%emt 0:00:38]} 38. Bxd5 {
[%emt 0:02:25]} exd5 {[%emt 0:00:04] Endgame KRR-KRR} 39. Rg6+ {[%emt 0:00:09]}
Kh7 {[%emt 0:00:04]} 40. Rxd5 {[%emt 0:00:09]} Rf4 {[%emt 0:01:43]} 41. Rdd6 {
[%emt 0:33:11]} Rxe5 {[%emt 0:00:00]} 42. Rd7+ {[%emt 0:00:00]} Kh8 {[%emt 0:
00:07]} 43. Rxh6+ {[%emt 0:00:00]} Kg8 {[%emt 0:00:04]} 44. Rc6 {[%emt 0:00:00]
Weighted Error Value: White=0.09 (flawless) /Black=0.42} 1-0

[Event "44th Chess Olympiad Open 2022"]
[Site "Chennai"]
[Date "2022.08.03"]
[Round "6.48"]
[White "Sai Han Thiha"]
[Black "Kigigha, Bomo"]
[Result "0-1"]
[WhiteElo "1974"]
[BlackElo "2251"]
[Annotator "TA"]
[PlyCount "87"]
[EventDate "2022.??.??"]
[TimeControl "60"]

{[%evp 12,87,12,7,15,0,2,0,0,2,0,1,13,15,22,8,10,11,8,13,14,4,13,12,39,6,2,
-223,-215,-352,-351,-819,-805,-1350,-1349,-1333,-1331,-1253,-1186,-1083,-669,
-804,-627,-654,-643,-713,-695,-668,-668,-822,-808,-854,-841,-872,-881,-868,
-851,-935,-903,-1645,-1811,-29968,-29971,-29968,-29969,-29969,-6039,-5506,
-5143,-29982,-29983,-29986,-29987,-29986,-29986,-29984,-29985,-5252]} 1. d4 {
[%emt 0:00:04]} d5 {[%emt 0:00:04]} 2. Bf4 {[%emt 0:00:19]} c5 {[%emt 0:00:13]}
3. e3 {[%emt 0:00:07]} Nf6 {[%emt 0:02:35]} 4. c3 {[%emt 0:01:48]} e6 {[%emt 0:
00:00]} 5. Nd2 {[%emt 0:00:18]} Nc6 {[%emt 0:00:13]} 6. Ngf3 {[%emt 0:00:07]}
Be7 {[%emt 0:00:04] 6...Nh5 is setting a new trend.} 7. Ne5 {[%emt 0:01:00]}
Nd7 {[%emt 0:00:21] D02:1 d4 d5 2 Nf3 sidelines, including 2...Nf6 3 g3 and 2.
..Nf6 3 Bf4.} 8. Ndf3 {[%emt 0:13:48]} Ndxe5 {[%emt 0:04:42]} 9. Nxe5 {[%emt 0:
00:00]} Nxe5 {[%emt 0:03:09] The position is equal.} 10. Bxe5 {[%emt 0:00:04]}
O-O {[%emt 0:00:10] [#]} 11. a4 $146 {[%emt 0:08:01]} ({Predecessor:} 11. Bd3
Bd6 12. Bxd6 Qxd6 13. f4 cxd4 14. cxd4 Bd7 15. O-O {½-½ (15) Grachev,B (2626)
-Kamsky,G (2666) Sochi 2018}) 11... Bd7 {[%emt 0:11:42]} 12. Bd3 {[%emt 0:00:
00]} Be8 {[%emt 0:04:32]} 13. Qb1 {[%emt 0:04:05]} (13. Qg4 {seems wilder.} g6
14. O-O f6 15. Bg3) 13... f5 {[%emt 0:02:39]} 14. dxc5 {[%emt 0:04:29]} Bxc5 {
[%emt 0:00:15]} 15. O-O {[%emt 0:00:12]} a5 {[%emt 0:04:07]} 16. Rd1 {[%emt 0:
00:00]} Qh4 {[%emt 0:03:33]} 17. Qc2 {[%emt 0:05:23]} Rc8 {[%emt 0:02:34]} 18.
c4 {[%emt 0:17:07] Hoping for cxd5.} (18. b4 $5 {[%cal Rb4c5]} Bb6 19. Rdc1 $11
) 18... Bc6 {[%emt 0:07:02]} 19. Qc3 $2 {[%emt 0:04:16] [#] This move loses
the game for White.} (19. g3 $11 {and White stays safe.} Qg4 20. Be2) 19... f4
$1 $19 {[%emt 0:15:21]} 20. g3 {[%emt 0:23:33]} ({Much worse is} 20. Qxa5 {[#]}
fxe3 $1 21. Bg3 (21. Qxc5 $2 Qxf2+ 22. Kh1 dxc4 $19) 21... exf2+ 22. Kf1 Qe7
$19) (20. Bxf4 $142 Rxf4 21. g3) 20... fxg3 {[%emt 0:05:06]} 21. hxg3 {[%emt 0:
00:00]} (21. Bxg3 Qg4 22. Qc2) 21... Qh5 {[%emt 0:02:55][%cal Yd5d4] ( -> ...
d4!)} 22. Bd4 {[%emt 0:01:11]} dxc4 {[%emt 0:01:35][%csl Gc6][%cal Rh5h1]} 23.
e4 {[%emt 0:00:57]} Bxd4 {[%emt 0:00:34]} 24. Qxd4 {[%emt 0:00:05]} cxd3 {
[%emt 0:00:05]} 25. Rxd3 {[%emt 0:00:20]} Qe2 {[%emt 0:00:58]} 26. Qe3 {
[%emt 0:01:56]} Qxe3 {[%emt 0:05:39]} 27. Rxe3 {[%emt 0:00:02]} Rcd8 {[%emt 0:
00:00]} 28. b3 {[%emt 0:00:08]} Rd2 {[%emt 0:00:37]} 29. Rf1 {[%emt 0:00:21]}
Rfd8 {[%emt 0:00:31]} 30. f3 {[%emt 0:00:39]} R8d3 {[%emt 0:00:33]} 31. Rfe1 {
[%emt 0:00:08]} h5 {[%emt 0:01:18]} 32. Kf1 {[%emt 0:00:29]} g5 {[%emt 0:00:32]
[%cal Yg7g5,Yg5f4]} 33. Kg1 {[%emt 0:00:07]} Kg7 {[%emt 0:00:12]} 34. f4 {
[%emt 0:00:44]} Kg6 {[%emt 0:00:30]} 35. Kf1 {[%emt 0:01:24]} h4 {[%emt 0:00:
00]} 36. gxh4 {[%emt 0:01:28]} gxf4 {[%emt 0:00:12]} 37. Rxd3 {[%emt 0:00:00]}
Rxd3 {[%emt 0:00:03] KRB-KR} 38. Kf2 {[%emt 0:00:10]} Kh5 {[%emt 0:00:23]} (
38... Rxb3 $142 39. Rd1 Bxe4 40. Rd6 Kf5 41. Rd2 Rb4 42. h5 Rxa4 43. h6 Ra1 44.
Ke2 Rh1 45. Rd8 Rxh6 46. Kd2 f3 47. Ke3 Rh2 48. Rg8 Re2+ 49. Kd4 e5+ 50. Kc5 f2
51. Kd6 Kf4 52. Rg7 f1=Q 53. Rf7+ Bf5 54. Rh7 Rd2+ 55. Kc7 Bxh7 56. Kc8 Qb5 57.
Kc7 Qc6+ 58. Kb8 Rd8+ 59. Ka7 Qa6#) 39. Rc1 {[%emt 0:01:07]} Rxb3 {[%emt 0:00:
22]} 40. Rc2 {[%emt 0:00:26]} Kxh4 {[%emt 0:00:15] Black mates.} 41. e5 {
[%emt 0:30:19]} Kg4 {[%emt 0:30:37]} 42. Rd2 {[%emt 0:00:00]} Ra3 {[%emt 0:00:
00]} 43. Rb2 {[%emt 0:00:00]} Rxa4 {[%emt 0:00:00]} 44. Rd2 {[%emt 0:00:00]
Weighted Error Value: White=0.88/Black=0.25 (precise)} 0-1

[Event "44th Chess Olympiad Open 2022"]
[Site "Chennai"]
[Date "2022.08.03"]
[Round "6.48"]
[White "Zaw Ye Htut"]
[Black "Akinseye, Abiola"]
[Result "1/2-1/2"]
[WhiteElo "1255"]
[BlackElo "2214"]
[Annotator "TA"]
[PlyCount "132"]
[EventDate "2022.??.??"]
[TimeControl "60"]

{[%evp 14,132,1,-7,0,0,0,0,0,0,0,0,0,0,18,14,18,0,0,0,0,-9,-1,-20,-27,-25,0,0,
0,0,0,0,0,0,0,0,0,0,0,-5,45,0,0,-21,-21,-21,-5,-14,0,-4,0,-18,-18,-2,30,15,20,
12,20,22,52,16,46,56,51,18,27,0,22,15,29,41,44,0,0,0,0,0,0,0,0,-418,-159,-139,
-121,-131,-116,-642,-632,-5289,-5289,-5289,-5281,-1948,-1759,-1743,-997,-1464,
-988,-961,-181,-161,-153,-156,0,-1549,-1526,-1240,0,0,704,436,423,252,585,555,
806,0,0,0,0]} 1. e4 {[%emt 0:00:06]} e5 {[%emt 0:00:33]} 2. Nf3 {[%emt 0:00:13]
} Nc6 {[%emt 0:00:14]} 3. Bb5 {[%emt 0:00:04][%cal Yf1b5,Yb5a4,Ya4b3]} a6 {
[%emt 0:00:39]} 4. Ba4 {[%emt 0:00:06]} Nf6 {[%emt 0:00:22]} 5. d3 {[%emt 0:02:
46]} Bc5 {[%emt 0:05:14]} 6. O-O {[%emt 0:00:20]} b5 {[%emt 0:00:22]} 7. Bb3 {
[%emt 0:01:08]} d6 {[%emt 0:00:31]} 8. h3 {[%emt 0:00:19]} O-O {[%emt 0:02:50]
C78: Ruy Lopez: Archangelsk and Möller Defences.} 9. a4 {[%emt 0:00:18]} b4 {
[%emt 0:04:26]} 10. a5 {[%emt 0:00:18]} Be6 {[%emt 0:00:39]} 11. Nbd2 {[%emt 0:
00:34] [#]} Ne7 $146 {[%emt 0:02:53]} ({Predecessor:} 11... Rb8 12. Nc4 Ne7 13.
Ng5 Bd7 14. Be3 Bxe3 15. Nxe3 Ng6 16. Bc4 Bb5 17. Nf3 Bxc4 18. Nxc4 {1-0 (69)
Nakamura,H (2754)-Caruana,F (2819) Paris 2019}) 12. Nc4 {[%emt 0:05:29]} Ng6 {
[%emt 0:02:18]} 13. Be3 {[%emt 0:01:13]} Ba7 {[%emt 0:00:00]} 14. Qd2 {[%emt 0:
02:24]} Qb8 {[%emt 0:04:50]} 15. Rfb1 {[%emt 0:11:37]} Bxe3 {[%emt 0:03:37]}
16. fxe3 {[%emt 0:01:37]} Qa7 {[%emt 0:09:27]} 17. Kh2 {[%emt 0:02:34]} Rab8 {
[%emt 0:11:07]} 18. Ng5 {[%emt 0:03:16]} Bxc4 {[%emt 0:00:00]} 19. Bxc4 {
[%emt 0:03:42]} h6 {[%emt 0:00:40]} 20. Nf3 {[%emt 0:01:10]} c6 {[%emt 0:00:30]
} 21. Rf1 {[%emt 0:03:39]} d5 {[%emt 0:01:32]} 22. exd5 {[%emt 0:00:19]} cxd5 {
[%emt 0:00:20]} 23. Bb3 {[%emt 0:01:06]} Qe7 {[%emt 0:00:00]} 24. Qf2 {[%emt 0:
01:58]} Rb5 {[%emt 0:04:49]} 25. Qg3 {[%emt 0:02:33]} Kh7 {[%emt 0:06:29]} 26.
Nd2 {[%emt 0:07:34]} Nh5 {[%emt 0:07:21]} (26... Ne8 $11) 27. Qg4 {[%emt 0:03:
42]} (27. Qf3 $5 {[%cal Rf3h5]} Nf6 28. e4 $14) 27... Nf6 {[%emt 0:00:52]} 28.
Qf5 {[%emt 0:01:29]} e4 {[%emt 0:01:15]} 29. d4 {[%emt 0:00:00]} Kg8 {[%emt 0:
01:23]} 30. Ba4 {[%emt 0:02:23]} Rbb8 {[%emt 0:01:08]} ({Don't do} 30... Rxa5
31. Nb3 $16) 31. Kg1 {[%emt 0:00:52]} Rbc8 {[%emt 0:02:38]} 32. Rac1 {[%emt 0:
01:20]} Qd6 {[%emt 0:01:02]} 33. Nb3 {[%emt 0:01:40]} Qg3 {[%emt 0:04:10]
Threatens to win with ...Nh4.} 34. Qf2 {[%emt 0:00:57]} Qd6 {[%emt 0:00:49]}
35. Qe2 {[%emt 0:01:27]} Rc7 {[%emt 0:02:31]} 36. Nc5 {[%emt 0:00:00]} Ra7 {
[%emt 0:03:57]} 37. Bb3 {[%emt 0:05:10]} Rd8 {[%emt 0:01:16]} 38. c4 {[%emt 0:
02:46]} bxc3 {[%emt 0:00:13]} 39. Rxc3 {[%emt 0:00:20]} Rb8 {[%emt 0:00:54]}
40. Qc2 {[%emt 0:02:45]} Rb5 {[%emt 0:01:19]} 41. Ba4 {[%emt 0:00:00]} Rb4 {
[%emt 0:31:10]} 42. Rb3 {[%emt 0:02:08]} Rxb3 {[%emt 0:00:00]} 43. Qxb3 {
[%emt 0:00:00] Hoping for Qb6.} Qg3 {[%emt 0:00:00]} 44. Rf2 {[%emt 0:00:00]}
Ra8 {[%emt 0:00:00]} 45. Bc6 {[%emt 0:00:00][%csl Ya8,Yd5]} Rb8 $40 {[%emt 0:
00:00] Black mounts an attack.} 46. Qc3 {[%emt 0:00:00]} Nh4 {[%emt 0:00:00]}
47. Nxa6 $2 {[%emt 0:00:00]} (47. Bb7 $11) 47... Rc8 $2 {[%emt 0:00:00]} (47...
Nf3+ $1 $19 {and Black stays clearly on top.} 48. Kf1 Ng4 49. hxg4 Nh2+ 50. Ke1
Nxg4) 48. Nb4 $17 {[%emt 0:00:00]} Nh5 {[%emt 0:00:00] Strongly threatening ...
Nf3+.} 49. Nxd5 {[%emt 0:00:00] Ne7+ is the strong threat.} Nf3+ $1 {[%emt 0:
01:05]} 50. Kf1 $2 {[%emt 0:00:00] [#]} (50. Rxf3 $17 exf3 51. Qd2) 50... Qh2
$1 $19 {[%emt 0:00:20][%cal Rh5g3]} 51. gxf3 {[%emt 0:00:00]} (51. Ne7+ Kh8)
51... Ng3+ {[%emt 0:00:21]} 52. Ke1 {[%emt 0:00:00]} Qg1+ {[%emt 0:00:05]
Deflection} 53. Kd2 {[%emt 0:00:00]} Qxf2+ {[%emt 0:00:07]} 54. Kd1 {[%emt 0:
00:00]} Qe2+ {[%emt 0:00:00]} 55. Kc1 {[%emt 0:00:00]} exf3 {[%emt 0:00:32] (
-> ...f2)} 56. Ne7+ {[%emt 0:00:00]} Kh8 $2 {[%emt 0:00:14]} (56... Kh7 57.
Nxc8 f2) 57. Nxc8 {[%emt 0:00:00]} f2 {[%emt 0:01:18]} 58. Bg2 {[%emt 0:00:27]
[#] And now Ne7 would win.} Ne4 $1 {[%emt 0:02:14]} 59. Qc2 $2 {[%emt 0:02:32]}
(59. Qc6 $11 f1=Q+ 60. Bxf1 Qxf1+ 61. Kc2 Qg2+ 62. Kc1 Qg1+ 63. Kc2 Qg2+ 64.
Kc1 Qg1+ 65. Kc2 Qg2+) (59. Qb3 f1=Q+) 59... Qxe3+ {[%emt 0:01:00]} 60. Kb1 {
[%emt 0:01:38] [#]} Nd2+ $2 {[%emt 0:00:17]} (60... Qe1+ $1 $19 61. Qc1 {[#]}
Qg1 $1 62. Bxe4 f1=Q 63. Qxf1 Qxf1+ 64. Ka2 Qc4+ 65. Ka3 Qxc8) 61. Ka2 $11 {
[%emt 0:00:25]} Nf3 $2 {[%emt 0:02:08]} (61... Qg5 $11 62. Qa4 Kh7 63. Qc2+ Kh8
) 62. Ne7 {[%emt 0:01:18]} Qxe7 {[%emt 0:00:30]} 63. Qxf2 {[%emt 0:00:00]} (63.
Qc8+ $142 Kh7 64. Qf5+ Kg8 65. Qxf3) 63... Ne1 $2 {[%emt 0:00:34]} (63... Nh4
64. Kb3 Nxg2) 64. Bd5 $18 {[%emt 0:01:39]} Qb4 {[%emt 0:00:26]} 65. Qxf7 $2 {
[%emt 0:00:36]} (65. Kb1 $18 Nd3 66. Qe2 Qxa5 67. Qe8+ (67. Qxd3 Qxd5 68. Qe3
Kh7 $11) 67... Kh7 68. Be4+ f5 69. Bxd3) 65... Qa4+ $11 {[%emt 0:00:35]} 66.
Kb1 {[%emt 0:00:34][%csl Gd5][%cal Rf7g8]} Qd1+ {[%emt 0:00:24] What a bad
dream for Black. Weighted Error Value: White=0.64/Black=0.49} 1/2-1/2